Workbook

Sheet 2019
C2: Расчет субсидий на выполнение муниципального задания Тонкинского муниципального района на 2019 год
C6: Наименование учреждения | D6: Наименование муниципальной услуги | F6: Ед. изм. натуральных показателей | G6: Натуральные показатели | H6: Нормативные затраты, руб. | I6: Сумма субсидии, руб.
C8: МАОУ "Тонкинская ОШ" | D8: Реализация основных общеобразовательных программ начального общего образования | E8: Обучающиеся, за исключением обучающихся с ограниченными возможностями здоровья (ОВЗ) и детей -инвалидов | F8: чел. | G8: 255 | H8: 48132 | I8: =G8*H8 -> 12273660
E9: дети-инвалиды | F9: чел. | G9: 2 | H9: 55550 | I9: =G9*H9 -> 111100
E10: Обучающиеся с ограниченными возможностями здоровья (ОВЗ) | F10: чел. | G10: 4 | H10: 22868 | I10: 91472
D11: Реализация основных общеобразовательных программ основного общего образования | E11: Обучающиеся, за исключением обучающихся с ограниченными возможностями здоровья (ОВЗ) и детей -инвалидов | F11: чел. | G11: 273 | H11: 80489 | I11: 21973497
E12: дети-инвалиды | F12: чел. | G12: 4 | H12: 80686 | I12: 322744
E13: Обучающиеся с ограниченными возможностями здоровья (ОВЗ) | F13: чел. | G13: 5 | H13: 50954 | I13: 254770
D14: Реализация основных общеобразовательных программ среднего общего образования | E14: Обучающиеся, за исключением обучающихся с ограниченными возможностями здоровья (ОВЗ) и детей -инвалидов | F14: чел. | G14: 47 | H14: 48757 | I14: 2291579
D15: Итого | G15: =SUM(G8:G14) -> 590 | I15: =SUM(I8:I14) -> 37318822
C16: МБОУ "Пакалевская ОШ" | D16: Реализация основных общеобразовательных программ начального общего образования | E16: Обучающиеся, за исключением обучающихся с ограниченными возможностями здоровья (ОВЗ) и детей -инвалидов | F16: чел. | G16: 3 | H16: 747433 | I16: 2242299
E17: Обучающиеся с ограниченными возможностями здоровья (ОВЗ) | G17: 2 | H17: 88981 | I17: 177962
D18: Реализация основных общеобразовательных программ основного общего образования | E18: Обучающиеся, за исключением обучающихся с ограниченными возможностями здоровья (ОВЗ) и детей -инвалидов | F18: чел. | G18: 4 | H18: 1275979 | I18: 5103916
D19: Реализация основных общеобразовательных программ дошкольного образования | F19: чел. | G19: 9 | H19: 115364 | I19: 1038276
D20: Присмотр и уход | F20: чел. | G20: 9 | H20: 35791 | I20: 322119
D21: Итого | G21: =SUM(G16:G20) -> 27 | I21: =SUM(I16:I20) -> 8884572
C22: МБОУ "Вязовская ОШ" | D22: Реализация основных общеобразовательных программ начального общего образования | E22: Обучающиеся, за исключением обучающихся с ограниченными возможностями здоровья (ОВЗ) и детей -инвалидов | F22: чел. | G22: 20 | H22: 119445 | I22: 2388900
D23: Реализация основных общеобразовательных программ основного общего образования | E23: Обучающиеся, за исключением обучающихся с ограниченными возможностями здоровья (ОВЗ) и детей -инвалидов | F23: чел. | G23: 16 | H23: 284600 | I23: 4553600
E24: Обучающиеся с ограниченными возможностями здоровья (ОВЗ) | F24: чел. | G24: 1 | H24: 198979 | I24: 198979
D25: Итого | G25: =SUM(G22:G24) -> 37 | I25: =SUM(I22:I24) -> 7141479
C26: МБОУ "Бердниковская ОШ" | D26: Реализация основных общеобразовательных программ начального общего образования | E26: Обучающиеся, за исключением обучающихся с ограниченными возможностями здоровья (ОВЗ) и детей -инвалидов | F26: чел. | G26: 12 | H26: 121429 | I26: =G26*H26 -> 1457148
D27: Реализация основных общеобразовательных программ основного общего образования | E27: Обучающиеся, за исключением обучающихся с ограниченными возможностями здоровья (ОВЗ) и детей -инвалидов | F27: чел. | G27: 20 | H27: 239775 | I27: =G27*H27 -> 4795500
E28: дети-инвалиды | F28: чел. | G28: 1 | H28: 169244 | I28: 169244
D29: Итого | G29: =G26+G27+G28 -> 33 | I29: =SUM(I26:I28) -> 6421892
C30: МБОУ "Пахутинская ОШ" | D30: Реализация основных общеобразовательных программ начального общего образования | E30: Обучающиеся, за исключением обучающихся с ограниченными возможностями здоровья (ОВЗ) и детей -инвалидов | F30: чел. | G30: 7 | H30: 241512 | I30: 1690584
D31: Реализация основных общеобразовательных программ основного общего образования | E31: Обучающиеся, за исключением обучающихся с ограниченными возможностями здоровья (ОВЗ) и детей -инвалидов | F31: чел. | G31: 7 | H31: 747939 | I31: 5235573
D32: Реализация основных общеобразовательных программ дошкольного образования | F32: чел. | G32: 6 | H32: 102864 | I32: 617184
D33: Присмотр и уход | F33: чел. | G33: 6 | H33: 87753 | I33: 526518
D34: Итого | G34: =SUM(G30:G33) -> 26 | I34: =SUM(I30:I33) -> 8069859
C35: МБОУ "Большесодомовская ОШ" | D35: Реализация основных общеобразовательных программ начального общего образования | F35: чел. | G35: 16 | H35: 133126 | I35: 2130016
D36: Реализация основных общеобразовательных программ основного общего образования | F36: чел. | G36: 14 | H36: 387079 | I36: 5419106
D37: Реализация основных общеобразовательных программ дошкольного образования | F37: чел. | G37: 12 | H37: 71875 | I37: 862500
D38: Присмотр и уход | F38: чел. | G38: 12 | H38: 50965 | I38: 611580
D39: Итого | G39: =SUM(G35:G38) -> 54 | I39: =SUM(I35:I38) -> 9023202
C40: МБДОУ д/с №1 "Теремок" | D40: Реализация основных общеобразовательных программ дошкольного образования | F40: чел. | G40: 85 | H40: 71788 | I40: =H40*G40 -> 6101980
D41: Присмотр и уход | F41: чел. | G41: 85 | H41: 30464 | I41: =H41*G41 -> 2589440
D42: Итого | G42: 170 | I42: =SUM(I40:I41) -> 8691420
C43: МБДОУ д/с №2 "Малышок" | D43: Реализация основных общеобразовательных программ дошкольного образования | F43: чел. | G43: 42 | H43: 100173 | I43: =H43*G43 -> 4207266
D44: Присмотр и уход | F44: чел. | G44: 42 | H44: 46712 | I44: =H44*G44 -> 1961904
D45: Итого | G45: 84 | I45: =SUM(I43:I44) -> 6169170
C46: МБДОУ д/с №4 "Солнышко" | D46: Реализация основных общеобразовательных программ дошкольного образования | F46: чел. | G46: 112 | H46: 70833 | I46: =H46*G46 -> 7933296
D47: Присмотр и уход | F47: чел. | G47: 112 | H47: 31307 | I47: =H47*G47 -> 3506384
D48: Итого | G48: 224 | I48: =SUM(I46:I47) -> 11439680
C49: МБДОУ д/с №5 "Сказка" | D49: Реализация основных общеобразовательных программ дошкольного образования | F49: чел. | G49: 54 | H49: 85850 | I49: =H49*G49 -> 4635900
D50: Присмотр и уход | F50: чел. | G50: 54 | H50: 40082 | I50: =H50*G50 -> 2164428
D51: Итого | G51: 108 | I51: =SUM(I49:I50) -> 6800328
C52: МБДОУ д/с №8 "Елочка" | D52: Реализация основных общеобразовательных программ дошкольного образования | F52: чел. | G52: 22 | H52: 134374 | I52: =H52*G52 -> 2956228
D53: Присмотр и уход | F53: чел. | G53: 22 | H53: 40772 | I53: =H53*G53 -> 896984
D54: Итого | G54: 44 | I54: =SUM(I52:I53) -> 3853212
C55: МБДОУ д/с №9 "Василек" | D55: Реализация основных общеобразовательных программ дошкольного образования | F55: чел. | G55: 13 | H55: 190016 | I55: =G55*H55 -> 2470208
D56: Присмотр и уход | F56: чел. | G56: 13 | H56: 78633 | I56: =G56*H56 -> 1022229
D57: Итого | G57: 26 | I57: =SUM(I55:I56) -> 3492437
C58: МБУ ДО ЦДО | D58: реализация дополнительных общеразвивающих программ | F58: чел. | G58: 760 | H58: 10345 | I58: =G58*H58 -> 7862200
D59: Итого | G59: 760 | I59: 7862200
C60: МБУ ХЭС СО | D60: Содержание (эксплуатация) имущества, находящегося в государственной (муниципальной ) собственности | F60: ед. | G60: 10 | H60: 1184700 | I60: =G60*H60 -> 11847000
D61: Итого | G61: 10
C62: Культура | G62: =G65+G68+G72+G74+G76 -> 401105 | H62: =I62/G62 -> 108.161838 | I62: =I65+I68+I72+I74+I76 -> 43384254.02
C63: МБУК«МЦКС» | D63: Организация деятельности клубных формирований и формирований самодеятельного творчества | F63: ед. | G63: 144 | H63: 987.5 | I63: =G63*H63 -> 142200
D64: Организация и проведение культурно-массовых мероприятий | F64: чел. | G64: 182820 | H64: 119.45 | I64: =G64*H64 -> 21837849
C65: Итого: | G65: =SUM(G63:G64) -> 182964 | H65: =I65/G65 -> 120.1331901 | I65: =SUM(I63:I64) -> 21980049
C66: МБУК «НКМ» | D66: Публичный показ музейных предметов, музейных колекций | F66: чел. | G66: 4360 | H66: 304 | I66: =G66*H66 -> 1325440
D67: Формирование учет, изучение, обеспечение физического сохранения и безопасности музейных предметов, музейных коллекций | F67: ед. | G67: 10645 | H67: 114.22 | I67: 1215871.9
C68: Итого: | G68: =SUM(G66:G67) -> 15005 | H68: =I68/G68 -> 169.3643386 | I68: =SUM(I66:I67) -> 2541311.9
C69: МБУК «МЦБС» | D69: Библиотечное, библиографическое и информационное обслуживание пользователей библиотеки | F69: чел. | G69: 63842 | H69: 49.6 | I69: =G69*H69 -> 3166563.2
D70: Формирование, учет, изучение, обеспечение физического сохранения и безопасности фондов библиотек, включая оцифровку фондов | F70: ед. | G70: 123333 | H70: 30.5 | I70: 3761656.5
D71: Библиографическая обработка документов и создание каталогов | F71: ед. | G71: 15854 | H71: 276.36 | I71: 4381411.44
C72: Итого: | G72: =SUM(G69:G71) -> 203029 | H72: =I72/G72 -> 55.70451088 | I72: =SUM(I69:I71) -> 11309631.14
C73: МБУ ДО "ДМШ" | D73: Реализация дополнительных общеобразовательных предпрофесиональных программ в области исскуств | F73: чел. | G73: 62 | H73: 67618.34 | I73: =G73*H73 -> 4192337.08
C74: Итого: | G74: =SUM(G73) -> 62 | H74: =I74/G74 -> 67618.34 | I74: =SUM(I73) -> 4192337.08
C75: МБУ ДО "ДХШ" | D75: Реализация дополнительных общеобразовательных предпрофесиональных программ в области исскуств | F75: чел. | G75: 45 | H75: 74687.22 | I75: =G75*H75 -> 3360924.9
C76: Итого: | G76: =SUM(G75) -> 45 | H76: =I76/G76 -> 74687.22 | I76: =SUM(I75) -> 3360924.9
C77: Спорт | G77: =SUM(G78:G81) -> 149 | H77: 19390.50819 | I77: =SUM(I78:I81) -> 2889185.72
C78: МБУ ФСК «Кристалл». | D78: Организация и проведение Официальных Физкультурных (физкультурно-оздоровительных) мероприятий | F78: количество мероприятий | G78: 31 | H78: 83522.12 | I78: =G78*H78 -> 2589185.72
D79: Организация и проведение официальных спортивных мероприятий | F79: количество мероприятий | G79: 106 | H79: =I79/G79 -> 2735.849057 | I79: 290000
D80: Проведение тестирования выполнения нормативов испытаний (тестов) комплекса ГТО | F80: количество мероприятий | G80: 12 | H80: 833.3333333 | I80: 10000
D81: Организация и проведение Физкультурных и спортивных мероприятий в рамках Всероссийского физкультурно-спортивного комплекса «Готов к труду и обороне» (ГТО) (за исключением тестирования выполнения нормативов испытаний комплекса ГТО) | F81: количество мероприятий | G81: 0 | H81: 0 | I81: =G81*H81 -> 0
